fUSD/lending_fUSD_20240216
["ID","MTS","AMOUNT","RATE_DAILY","PERIOD"]
[314230318,1708104652150,-559.09,0.00049315,60]
[314230319,1708104652159,-500.0,0.00049315,60]
[314230320,1708104652169,-500.0,0.00049315,60]
[314230321,1708104652179,-500.0,0.00049315,60]
[314230322,1708104652188,-543.28,0.00049315,60]
[314230323,1708104652197,-500.0,0.00049315,60]
[314230324,1708104652206,-500.0,0.00049315,60]
[314230325,1708104652216,-500.0,0.00049315,60]
[314230326,1708104652225,-500.0,0.00049315,60]
[314230327,1708104652432,-500.0,0.00049315,60]
[314230328,1708104652442,-500.0,0.00049315,60]
[314230329,1708104652452,-813.04,0.00049315,60]
[314230330,1708104652462,-500.0,0.00049315,60]
[314230331,1708104652471,-500.0,0.00049315,60]
[314230332,1708104652480,-500.0,0.00049315,60]
[314230333,1708104652489,-563.67052279,0.00049315,60]
[314230334,1708104652498,-615.93727097,0.00049315,60]
[314230335,1708104652508,-562.80978113,0.00049315,60]
[314230336,1708104652517,-755.12,0.00049315,60]
[314230337,1708104652527,-294.12570251,0.00049315,60]
[314230338,1708104652536,-500.0,0.00049315,60]
[314230339,1708104652545,-602.15737917,0.00049315,60]
[314230340,1708104652554,-500.0,0.00049315,60]
[314230341,1708104652564,-500.0,0.00049315,60]
[314230342,1708104652574,-500.0,0.00049315,60]
[314230343,1708104652583,-500.0,0.00049315,60]
[314230344,1708104652593,-670.59,0.00049315,60]
[314230345,1708104652604,-500.0,0.00049315,60]
[314230346,1708104652614,-500.0,0.00049315,60]
[314230347,1708104652623,-500.0,0.00049315,60]
[314230348,1708104652633,-500.0,0.00049315,60]
[314230349,1708104652642,-500.0,0.00049315,60]
[314230350,1708104652651,-500.0,0.00049315,60]
[314230351,1708104652661,-500.0,0.00049315,2]
[314230352,1708104652670,-500.0,0.00049315,120]
[314230353,1708104652679,-500.0,0.00049315,60]
[314230354,1708104652689,-500.0,0.00049315,60]
[314230355,1708104652699,-500.0,0.00049315,60]
[314230356,1708104652709,-500.0,0.00049315,60]
[314230357,1708104652719,-500.0,0.00049315,60]
[314230358,1708104652730,-402.11078891,0.00049315,60]
[314230359,1708104652744,-500.0,0.00049315,60]
[314230360,1708104652753,-500.0,0.00049315,60]
[314230361,1708104652762,-500.0,0.00049315,60]
[314230362,1708104652773,-500.0,0.00049315,60]
[314230363,1708104652782,-500.0,0.00049315,60]
[314230364,1708104652791,-500.0,0.00049315,60]
[314230365,1708104652802,-500.0,0.00049315,60]
[314230366,1708104652812,-508.95679168,0.00049315,60]
[314230367,1708104652822,-500.0,0.00049315,60]
[314230368,1708104652831,-500.0,0.00049315,60]
[314230369,1708104652840,-500.0,0.00049315,60]
[314230370,1708104652850,-651.31,0.00049315,60]
[314230371,1708104652860,-500.0,0.00049315,60]
[314230372,1708104652870,-500.0,0.00049315,60]
[314230373,1708104652879,-500.0,0.00049315,60]
[314230374,1708104652889,-500.0,0.00049315,60]
[314230375,1708104652900,-500.0,0.00049315,60]
[314230376,1708104652910,-535.77004745,0.00049315,60]
[314230377,1708104652919,-736.14,0.00049315,60]
[314230378,1708104652929,-508.00611141,0.00049315,60]
[314230379,1708104652939,-704.35,0.00049315,60]
[314230380,1708104652948,-500.0,0.00049315,60]
[314230381,1708104652957,-500.0,0.00049315,60]
[314230382,1708104652967,-1200.0,0.00049315,120]
[314230383,1708104652978,-500.0,0.00049315,60]
[314230384,1708104652989,-500.0,0.00049315,60]
[314230385,1708104653000,-588.07,0.00049315,60]
[314230386,1708104653009,-610.96,0.00049315,60]
[314230387,1708104653019,-599.57,0.00049315,60]
[314230388,1708104653027,-500.0,0.00049315,60]
[314230389,1708104653038,-500.0,0.00049315,60]
[314230390,1708104653047,-500.0,0.00049315,60]
[314230391,1708104653057,-500.0,0.00049315,60]
[314230392,1708104653066,-500.0,0.00049315,60]
[314230393,1708104653075,-500.0,0.00049315,60]
[314230394,1708104653086,-500.0,0.00049315,60]
[314230395,1708104653095,-500.0,0.00049315,60]
[314230396,1708104653107,-500.0,0.00049315,60]
[314230397,1708104653117,-500.0,0.00049315,60]
[314230398,1708104653126,-500.0,0.00049315,60]
[314230399,1708104653137,-502.64469769,0.00049315,60]
[314230400,1708104653146,-500.0,0.00049315,60]
[314230401,1708104653155,-512.5300216,0.00049315,60]
[314230402,1708104653165,-500.0,0.00049315,60]
[314230403,1708104653174,-513.17,0.00049315,60]
[314230404,1708104653183,-500.0,0.00049315,60]
[314230405,1708104653192,-500.0,0.00049315,60]
[314230406,1708104653202,-500.0,0.00049315,60]
[314230407,1708104653211,-500.0,0.00049315,60]
[314230408,1708104653220,-582.95052252,0.00049315,60]
[314230409,1708104653229,-510.01,0.00049315,60]
[314230410,1708104653239,-500.0,0.00049315,60]
[314230411,1708104653247,-500.0,0.00049315,60]
[314230412,1708104653256,-520.02631342,0.00049315,60]
[314230413,1708104653266,-500.0,0.00049315,60]
[314230414,1708104653275,-615.2237429,0.00049315,60]
[314230415,1708104653284,-500.0,0.00049315,60]
[314230416,1708104653293,-500.0,0.00049315,60]
[314230417,1708104653303,-500.0,0.00049315,60]
[314230418,1708104653312,-500.0,0.00049315,60]
[314230419,1708104653321,-500.0,0.00049315,60]
[314230420,1708104653330,-500.0,0.00049315,60]
[314230421,1708104653339,-500.0,0.00049315,60]
[314230422,1708104653350,-500.0,0.00049315,60]
[314230423,1708104653359,-500.0,0.00049315,60]
[314230424,1708104653368,-500.0,0.00049315,60]
[314230425,1708104653389,-500.0,0.00049315,60]
[314230426,1708104653406,-500.0,0.00049315,60]
[314230427,1708104653425,-536.23219116,0.00049315,60]
[314230428,1708104653445,-601.91,0.00049315,60]
[314230429,1708104653461,-648.36,0.00049315,60]
[314230430,1708104653478,-500.0,0.00049315,60]
[314230431,1708104653498,-500.0,0.00049315,60]
[314230432,1708104653514,-500.0,0.00049315,60]
[314230433,1708104653532,-500.0,0.00049315,60]
[314230434,1708104653548,-500.0,0.00049315,60]
[314230435,1708104653567,-500.0,0.00049315,60]
[314230436,1708104653588,-500.0,0.00049315,60]
[314230437,1708104653601,-500.0,0.00049315,60]
[314230438,1708104653619,-500.0,0.00049315,60]
[314230439,1708104653635,-733.68,0.00049315,60]
[314230440,1708104653647,-552.33,0.00049315,60]
[314230441,1708104653662,-500.0,0.00049315,60]
[314230442,1708104653675,-727.49,0.00049315,60]
[314230443,1708104653690,-500.0,0.00049315,60]
[314230444,1708104653704,-500.0,0.00049315,60]
[314230445,1708104653718,-698.06,0.00049315,60]
[314230446,1708104653737,-500.0,0.00049315,60]
[314230447,1708104653751,-573.6352904,0.00049315,60]
[314230448,1708104653765,-500.0,0.00049315,60]
[314230449,1708104653779,-626.34,0.00049315,60]
[314230450,1708104653794,-500.0,0.00049315,60]
[314230451,1708104653808,-542.84526632,0.00049315,60]
[314230452,1708104653824,-604.65,0.00049315,60]
[314230453,1708104653838,-683.55,0.00049315,60]
[314230454,1708104653857,-500.0,0.00049315,60]
[314230455,1708104653871,-500.0,0.00049315,60]
[314230456,1708104653885,-500.0,0.00049315,60]
[314230457,1708104653899,-500.0,0.00049315,60]
[314230458,1708104653913,-500.0,0.00049315,60]
[314230459,1708104653927,-500.0,0.00049315,60]
[314230460,1708104653941,-500.0,0.00049315,60]
[314230461,1708104653955,-500.0,0.00049315,60]
[314230462,1708104653969,-500.0,0.00049315,60]
[314230463,1708104653983,-2417.07,0.00049315,60]
[314230464,1708104653997,-500.0,0.00049315,60]
[314230465,1708104654011,-563.92730468,0.00049315,60]
[314230466,1708104654026,-10000.0,0.00049315,60]
[314230467,1708104654040,-500.0,0.00049315,60]
[314230468,1708104654054,-500.0,0.00049315,60]
[314230469,1708104654068,-500.0,0.00049315,60]
[314230470,1708104654082,-500.0,0.00049315,60]
[314230471,1708104654097,-500.0,0.00049315,60]
[314230472,1708104654112,-500.0,0.00049315,60]
[314230473,1708104654126,-500.0,0.00049315,60]
[314230474,1708104654141,-500.0,0.00049315,60]
[314230475,1708104654155,-500.0,0.00049315,30]
[314230476,1708104654169,-500.0,0.00049315,60]
[314230477,1708104654183,-500.0,0.00049315,60]
[314230478,1708104654198,-500.0,0.00049315,60]
[314230479,1708104654212,-500.0,0.00049315,60]
[314230480,1708104654226,-500.0,0.00049315,60]
[314230481,1708104654241,-519.4454445,0.00049315,60]
[314230482,1708104654256,-500.0,0.00049315,60]
[314230483,1708104654270,-501.44469564,0.00049315,60]
[314230484,1708104654285,-500.0,0.00049315,60]
[314230485,1708104654299,-591.0,0.00049315,60]
[314230486,1708104654313,-10000.0,0.00049315,60]
[314230487,1708104654327,-500.0,0.00049315,60]
[314230488,1708104654341,-500.0,0.00049315,60]
[314230489,1708104654356,-500.0,0.00049315,60]
[314230490,1708104654371,-500.0,0.00049315,60]
[314230491,1708104654385,-916.72,0.00049315,2]
[314230492,1708104654399,-500.0,0.00049315,60]
[314230493,1708104654414,-500.0,0.00049315,60]
[314230494,1708104654429,-763.98,0.00049315,60]
[314230495,1708104654443,-500.0,0.00049315,60]
[314230496,1708104654456,-500.0,0.00049315,60]
[314230497,1708104654471,-500.0,0.00049315,60]
[314230498,1708104654486,-500.0,0.00049315,60]
[314230499,1708104654499,-500.0,0.00049315,60]
[314230500,1708104654513,-500.0,0.00049315,60]
[314230501,1708104654528,-500.0,0.00049315,60]
[314230502,1708104654543,-500.0,0.00049315,60]
[314230503,1708104654557,-500.0,0.00049315,60]
[314230504,1708104654571,-500.0,0.00049315,60]
[314230505,1708104654585,-500.0,0.00049315,60]
[314230506,1708104654601,-500.0,0.00049315,60]
[314230507,1708104654615,-500.0,0.00049315,60]
[314230508,1708104654630,-538.5396505,0.00049315,60]
[314230509,1708104654645,-500.0,0.00049315,60]
[314230510,1708104654659,-500.0,0.00049315,60]
[314230511,1708104654675,-626.94,0.00049315,60]
[314230512,1708104654690,-500.0,0.00049315,60]
[314230513,1708104654704,-500.0,0.00049315,60]
[314230514,1708104654719,-500.0,0.00049315,60]
[314230515,1708104654737,-500.0,0.00049315,60]
[314230516,1708104654753,-500.0,0.00049315,60]
[314230517,1708104654765,-500.0,0.00049315,60]
[314230518,1708104654775,-500.0,0.00049315,60]
[314230519,1708104654785,-500.0,0.00049315,60]
[314230520,1708104654795,-500.0,0.00049315,60]
[314230521,1708104654805,-500.0,0.00049315,60]
[314230522,1708104654815,-722.56,0.00049315,60]
[314230523,1708104655091,-524.60798208,0.00049315,60]
[314230524,1708104655107,-500.0,0.00049315,60]
[314230525,1708104655116,-500.0,0.00049315,60]
[314230526,1708104655125,-658.97,0.00049315,60]
[314230527,1708104655135,-500.0,0.00049315,60]
[314230528,1708104655144,-500.0,0.00049315,60]
[314230529,1708104655153,-500.0,0.00049315,60]
[314230530,1708104655163,-500.0,0.00049315,60]
[314230531,1708104655172,-322.15691215,0.00049315,60]
[314230532,1708104655181,-524.24516255,0.00049315,60]
[314230533,1708104655191,-500.0,0.00049315,60]
[314230534,1708104655201,-151.0,0.00049315,14]
[314230535,1708104655210,-500.0,0.00049315,60]
[314230536,1708104655219,-591.59,0.00049315,60]
[314230537,1708104655229,-500.0,0.00049315,60]
[314230538,1708104655239,-500.0,0.00049315,60]
[314230539,1708104655248,-500.0,0.00049315,60]
[314230540,1708104655257,-523.21,0.00049315,60]
[314230541,1708104655267,-500.0,0.00049315,60]
[314230542,1708104655276,-500.0,0.00049315,60]
[314230543,1708104655285,-500.0,0.00049315,60]
[314230544,1708104655295,-500.0,0.00049315,60]
[314230545,1708104655304,-500.0,0.00049315,60]
[314230546,1708104655313,-500.0,0.00049315,60]
[314230547,1708104655323,-500.0,0.00049315,60]
[314230548,1708104655332,-606.48,0.00049315,60]
[314230549,1708104655341,-500.0,0.00049315,60]
[314230550,1708104655350,-500.0,0.00049315,60]
[314230551,1708104655359,-1187.58,0.00049315,2]
[314230552,1708104655368,-500.0,0.00049315,60]
[314230553,1708104655377,-500.0,0.00049315,60]
[314230554,1708104655386,-500.0,0.00049315,60]
[314230555,1708104655395,-500.0,0.00049315,60]
[314230556,1708104655405,-539.06,0.00049315,60]
[314230557,1708104655414,-500.0,0.00049315,60]
[314230558,1708104655423,-511.93169262,0.00049315,60]
[314230559,1708104655432,-500.0,0.00049315,60]
[314230560,1708104655441,-500.0,0.00049315,60]
[314230561,1708104655451,-500.0,0.00049315,60]
[314230562,1708104655461,-500.0,0.00049315,60]
[314230563,1708104655470,-500.0,0.00049315,60]
[314230564,1708104655479,-500.0,0.00049315,60]
[314230565,1708104655488,-500.0,0.00049315,60]
[314230566,1708104655497,-500.0,0.00049315,60]
[314230567,1708104655507,-940.79,0.00049315,60]
[314230568,1708104655516,-1280.19,0.00049315,7]
[314230569,1708104655526,-517.41356301,0.00049315,60]
[314230570,1708104655535,-663.89,0.00049315,60]
[314230571,1708104655544,-500.0,0.00049315,60]
[314230572,1708104655553,-500.0,0.00049315,7]
[314230573,1708104655562,-500.0,0.00049315,60]
[314230574,1708104655571,-500.0,0.00049315,60]
[314230575,1708104655580,-500.0,0.00049315,60]
[314230576,1708104655591,-621.15,0.00049315,60]
[314230577,1708104655600,-500.0,0.00049315,60]
[314230578,1708104655611,-500.0,0.00049315,60]
[314230579,1708104655621,-293.22700972,0.00049315,60]
[314230580,1708104655631,-307.01456117,0.00049315,60]
[314230581,1708104655640,-500.0,0.00049315,60]
[314230582,1708104655649,-500.0,0.00049315,14]
[314230583,1708104655659,-500.0,0.00049315,60]
[314230584,1708104655668,-500.0,0.00049315,60]
[314230585,1708104655678,-500.0,0.00049315,60]
[314230586,1708104655688,-500.0,0.00049315,60]
[314230587,1708104655698,-948.3,0.00049315,60]
[314230588,1708104655707,-875.86,0.00049315,60]
[314230589,1708104655717,-500.0,0.00049315,60]
[314230590,1708104655727,-500.0,0.00049315,60]
[314230591,1708104655739,-574.58964482,0.00049315,60]
[314230592,1708104655748,-500.0,0.00049315,60]
[314230593,1708104655758,-789.19,0.00049315,60]
[314230594,1708104655767,-500.0,0.00049315,60]
[314230595,1708104655776,-526.29480452,0.00049315,60]
[314230596,1708104655786,-500.0,0.00049315,60]
[314230597,1708104655795,-530.38,0.00049315,60]
[314230598,1708104655804,-500.0,0.00049315,60]
[314230599,1708104655814,-500.0,0.00049315,60]
[314230600,1708104655823,-651.05,0.00049315,60]
[314230601,1708104655832,-524.2953094,0.00049315,2]
[314230602,1708104655841,-500.0,0.00049315,60]
[314230603,1708104655850,-500.0,0.00049315,60]
[314230604,1708104655859,-766.83,0.00049315,60]
[314230605,1708104655868,-590.36747282,0.00049315,60]
[314230606,1708104655877,-644.96,0.00049315,60]
[314230607,1708104655887,-511.24,0.00049315,60]
[314230608,1708104655896,-500.0,0.00049315,60]
[314230609,1708104655905,-500.0,0.00049315,60]
[314230610,1708104655914,-416.13082319,0.00049315,60]
[314230611,1708104655924,-500.0,0.00049315,60]
[314230612,1708104655933,-500.0,0.00049315,60]
[314230613,1708104655942,-500.0,0.00049315,60]
[314230614,1708104655951,-500.0,0.00049315,60]
[314230615,1708104655960,-570.3,0.00049315,60]
[314230616,1708104655969,-529.73373157,0.00049315,60]
[314230617,1708104655978,-500.0,0.00049315,60]
[314230618,1708104655987,-500.0,0.00049315,60]
[314230619,1708104655996,-500.0,0.00049315,60]
[314230620,1708104656006,-500.0,0.00049315,60]
[314230621,1708104656015,-500.0,0.00049315,60]
[314230622,1708104656024,-500.0,0.00049315,60]
[314230623,1708104656033,-500.0,0.00049315,60]
[314230624,1708104656042,-500.0,0.00049315,60]
[314230625,1708104656051,-500.0,0.00049315,60]
[314230626,1708104656060,-578.36,0.00049315,60]
[314230627,1708104656069,-1000.0,0.00049315,30]
[314230628,1708104656078,-500.0,0.00049315,60]
[314230629,1708104656087,-589.18312539,0.00049315,60]
[314230630,1708104656096,-500.0,0.00049315,60]
[314230631,1708104656105,-500.0,0.00049315,60]
[314230632,1708104656115,-500.0,0.00049315,60]
[314230633,1708104656124,-500.0,0.00049315,60]
[314230634,1708104656133,-500.0,0.00049315,60]
[314230635,1708104656142,-588.77257633,0.00049315,60]
[314230636,1708104656151,-550.24715519,0.00049315,60]
[314230637,1708104656160,-1047.41,0.00049315,60]
[314230638,1708104656170,-500.0,0.00049315,60]
[314230639,1708104656179,-547.89,0.00049315,60]
[314230640,1708104656188,-1692.04,0.00049315,2]
[314230641,1708104656198,-548.27,0.00049315,60]
[314230642,1708104656207,-222.6213367,0.00049315,60]
[314230643,1708104656216,-500.0,0.00049315,60]
[314230644,1708104656226,-528.46001834,0.00049315,60]
[314230645,1708104656235,-586.65515329,0.00049315,60]
[314230646,1708104656244,-560.50177265,0.00049315,60]
[314230647,1708104656253,-500.0,0.00049315,60]
[314230648,1708104656262,-500.0,0.00049315,60]
[314230649,1708104656271,-500.0,0.00049315,60]
[314230650,1708104656281,-500.0,0.00049315,60]
[314230651,1708104656291,-906.86,0.00049315,60]
[314230652,1708104656301,-500.0,0.00049315,60]
[314230653,1708104656312,-1123.32,0.00049315,60]
[314230654,1708104656321,-505.81,0.00049315,60]
[314230655,1708104656331,-803.48,0.00049315,60]
[314230656,1708104656340,-1135.88,0.00049315,60]
[314230657,1708104656350,-500.0,0.00049315,60]
[314230658,1708104656360,-684.14,0.00049315,60]
[314230659,1708104656370,-500.0,0.00049315,60]
[314230660,1708104656379,-500.0,0.00049315,60]
[314230661,1708104656389,-556.67956631,0.00049315,60]
[314230662,1708104656398,-393.82823046,0.00049315,60]
[314230663,1708104656407,-500.0,0.00049315,60]
[314230664,1708104656416,-2275.6,0.00049315,60]
[314230665,1708104656426,-500.0,0.00049315,120]
[314230666,1708104656435,-536.57250776,0.00049315,60]
[314230667,1708104656444,-500.0,0.00049315,60]
[314230668,1708104656453,-500.0,0.00049315,60]
[314230669,1708104656463,-500.0,0.00049315,60]
[314230670,1708104656472,-500.0,0.00049315,60]
[314230671,1708104656481,-500.0,0.00049315,60]
[314230672,1708104656490,-500.0,0.00049315,60]
[314230673,1708104656500,-677.76,0.00049315,60]
[314230674,1708104656509,-500.0,0.00049315,60]
[314230675,1708104656518,-500.0,0.00049315,60]
[314230676,1708104656527,-500.0,0.00049315,60]
[314230677,1708104656537,-509.07627943,0.00049315,60]
[314230678,1708104656546,-500.0,0.00049315,7]
[314230679,1708104656555,-500.0,0.00049315,60]
[314230680,1708104656564,-564.21,0.00049315,60]
[314230681,1708104656573,-662.25,0.00049315,60]
[314230682,1708104656582,-500.0,0.00049315,60]
[314230683,1708104656592,-500.0,0.00049315,60]
[314230684,1708104656603,-500.0,0.00049315,60]
[314230685,1708104656612,-500.0,0.00049315,60]
[314230686,1708104656621,-500.0,0.00049315,60]
[314230687,1708104656630,-500.0,0.00049315,60]
[314230688,1708104656640,-500.0,0.00049315,60]
[314230689,1708104656649,-500.0,0.00049315,60]
[314230690,1708104656659,-500.0,0.00049315,60]
[314230691,1708104656669,-1000.0,0.00049315,60]
[314230692,1708104656678,-500.0,0.00049315,60]
[314230693,1708104656687,-500.0,0.00049315,60]
[314230694,1708104656696,-590.85863046,0.00049315,60]
[314230695,1708104656706,-517.38983539,0.00049315,60]
[314230696,1708104656715,-500.0,0.00049315,60]
[314230697,1708104656724,-500.0,0.00049315,60]
[314230698,1708104656735,-738.54,0.00049315,60]
[314230699,1708104656745,-500.0,0.00049315,60]
[314230700,1708104656755,-500.0,0.00049315,60]
[314230701,1708104656764,-500.0,0.00049315,60]
[314230702,1708104656774,-500.0,0.00049315,60]
[314230703,1708104656784,-658.54,0.00049315,60]
[314230704,1708104656793,-500.0,0.00049315,60]
[314230705,1708104656802,-500.0,0.00049315,60]
[314230706,1708104656812,-500.0,0.00049315,60]
[314230707,1708104656821,-500.0,0.00049315,60]
[314230708,1708104656831,-622.25825532,0.00049315,60]
[314230709,1708104656840,-500.0,0.00049315,60]
[314230710,1708104656849,-500.0,0.00049315,60]
[314230711,1708104656859,-500.0,0.00049315,60]
[314230712,1708104656869,-1931.51,0.00049315,60]
[314230713,1708104656878,-500.0,0.00049315,60]
[314230714,1708104656887,-500.0,0.00049315,60]
[314230715,1708104656896,-500.0,0.00049315,60]
[314230716,1708104656906,-500.0,0.00049315,60]
[314230717,1708104656916,-500.0,0.00049315,60]
[314230718,1708104656924,-500.05,0.00049315,60]
[314230719,1708104656934,-500.0,0.00049315,60]
[314230720,1708104656943,-500.0,0.00049315,60]
[314230721,1708104656952,-500.0,0.00049315,60]
[314230722,1708104656961,-500.0,0.00049315,60]
[314230723,1708104656970,-2375.21,0.00049315,60]
[314230724,1708104656979,-500.0,0.00049315,30]
[314230725,1708104656988,-7087.45,0.00049315,60]
[314230726,1708104656997,-500.0,0.00049315,4]
[314230727,1708104657006,-500.0,0.00049315,60]
[314230728,1708104657015,-500.0,0.00049315,60]
[314230729,1708104657025,-500.0,0.00049315,60]
[314230730,1708104657034,-584.91,0.00049315,60]
[314230731,1708104657043,-500.0,0.00049315,60]
[314230732,1708104657052,-500.0,0.00049315,60]
[314230733,1708104657062,-773.71,0.00049315,60]
[314230734,1708104657070,-500.0,0.00049315,60]
[314230735,1708104657079,-500.0,0.00049315,60]
[314230736,1708104657089,-500.0,0.00049315,60]
[314230737,1708104657098,-500.0,0.00049315,60]
[314230738,1708104657108,-500.0,0.00049315,60]
[314230739,1708104657117,-678.94,0.00049315,60]
[314230740,1708104657126,-2129.55,0.00049315,60]
[314230741,1708104657135,-500.0,0.00049315,60]
[314230742,1708104657144,-500.0,0.00049315,60]
[314230743,1708104657153,-538.62969917,0.00049315,60]
[314230744,1708104657162,-1605.91,0.00049315,60]
[314230745,1708104657172,-500.0,0.00049315,60]
[314230746,1708104657181,-500.0,0.00049315,60]
[314230747,1708104657190,-505.59890699,0.00049315,60]
[314230748,1708104657198,-562.39037569,0.00049315,60]
[314230749,1708104657208,-500.0,0.00049315,60]
[314230750,1708104657217,-500.0,0.00049315,60]
[314230751,1708104657226,-500.0,0.00049315,60]
[314230752,1708104657235,-500.0,0.00049315,60]
[314230753,1708104657245,-500.0,0.00049315,60]
[314230754,1708104657254,-516.83656438,0.00049315,60]
[314230755,1708104657263,-354.63422815,0.00049315,60]
[314230756,1708104657272,-500.0,0.00049315,60]
[314230757,1708104657282,-500.0,0.00049315,60]
[314230758,1708104657291,-500.0,0.00049315,60]
[314230759,1708104657300,-3132.65,0.00049315,60]
[314230760,1708104657309,-3467.49,0.00049315,60]
[314230761,1708104657318,-500.0,0.00049315,60]
[314230762,1708104657327,-500.0,0.00049315,60]
[314230763,1708104657337,-500.0,0.00049315,60]
[314230764,1708104657346,-2609.97,0.00049315,60]
[314230765,1708104657356,-500.0,0.00049315,60]
[314230766,1708104657366,-1180.76,0.00049315,60]
[314230767,1708104657375,-500.0,0.00049315,60]
[314230768,1708104657384,-150.0,0.00049315,60]
[314230769,1708104657393,-445.63667188,0.00049315,60]
[314230770,1708104657403,-9180.1,0.00049315,60]
[314230771,1708104657413,-500.0,0.00049315,60]
[314230772,1708104657423,-500.0,0.00049315,60]
[314230773,1708104657432,-500.0,0.00049315,60]
[314230774,1708104657441,-500.0,0.00049315,60]
[314230775,1708104657451,-536.59929398,0.00049315,60]
[314230776,1708104657461,-500.0,0.00049315,60]
[314230777,1708104657471,-515.2158831,0.00049315,60]
[314230778,1708104657481,-3315.38,0.00049315,60]
[314230779,1708104657491,-500.0,0.00049315,60]
[314230780,1708104657501,-545.6212044,0.00049315,60]
[314230781,1708104657510,-500.0,0.00049315,60]
[314230782,1708104657520,-1052.12,0.00049315,60]
[314230783,1708104657529,-500.0,0.00049315,60]
[314230784,1708104657538,-500.0,0.00049315,60]
[314230785,1708104657547,-500.0,0.00049315,60]
[314230786,1708104657556,-503.42,0.00049315,60]
[314230787,1708104657566,-493.56996951,0.00049315,60]
[314230788,1708104657575,-500.0,0.00049315,60]
[314230789,1708104657585,-257.78602332,0.00049315,60]
[314230790,1708104657594,-500.0,0.00049315,60]
[314230791,1708104657605,-500.0,0.00049315,60]
[314230792,1708104657614,-520.86142935,0.00049315,60]
[314230793,1708104657624,-500.0,0.00049315,60]
[314230794,1708104657633,-500.0,0.00049315,60]
[314230795,1708104657642,-500.0,0.00049315,60]
[314230796,1708104657652,-570.28436991,0.00049315,60]
[314230797,1708104657662,-4914.67,0.00049315,60]
[314230798,1708104657671,-500.0,0.00049315,60]
[314230799,1708104657680,-1357.58,0.00049315,60]
[314230800,1708104657689,-500.0,0.00049315,60]
[314230801,1708104657698,-500.0,0.00049315,60]
[314230802,1708104657707,-500.0,0.00049315,60]
[314230803,1708104657716,-500.0,0.00049315,60]
[314230804,1708104657726,-500.0,0.00049315,60]
[314230805,1708104657738,-500.0,0.00049315,60]
[314230806,1708104657747,-638.65,0.00049315,60]
[314230807,1708104657756,-772.77,0.00049315,60]
[314230808,1708104657765,-500.0,0.00049315,60]
[314230809,1708104657775,-500.0,0.00049315,60]
[314230810,1708104657784,-500.0,0.00049315,60]
[314230811,1708104657793,-500.0,0.00049315,60]
[314230812,1708104657802,-500.0,0.00049315,60]
[314230813,1708104657812,-500.0,0.00049315,60]
[314230814,1708104657821,-500.0,0.00049315,60]
[314230815,1708104657830,-500.0,0.00049315,60]
[314230816,1708104657839,-500.0,0.00049315,60]
[314230817,1708104657848,-500.0,0.00049315,60]